[Event "Frauenbundesliga 2021-22"]
[Site "Germany"]
[Date "2022.05.27"]
[Round "4.2"]
[White "Padmini, Rout"]
[Black "Schneider, Jana"]
[Result "1-0"]
[ECO "C78"]
[WhiteElo "2348"]
[BlackElo "2303"]
[Annotator "TA"]
[PlyCount "125"]
[EventDate "2021.11.26"]
[EventType "team-tourn"]
[EventCountry "GER"]
[SourceTitle "playchess.com"]
[Source "ChessBase"]
[SourceQuality "1"]
[WhiteTeam "Hamburger SK"]
[BlackTeam "Bad Koenigshofen"]
[TimeControl "40/5400+30:1800+30"]

{[%evp 17,125,53,39,16,0,6,27,2,11,-24,15,14,11,14,16,12,12,16,13,12,163,158,157,152,160,129,150,162,157,157,159,127,122,127,168,112,262,318,410,371,483,473,451,426,406,0,384,0,360,356,317,295,352,352,341,312,250,250,251,175,183,186,191,143,151,150,250,252,242,242,1938,1117,3289,1768,2680,2187,5256,2475,12838,2235,1959,1683,6211,0,1615,0,12838,5708,12841,12840,12844,12844,12843,12843,12844,12844,12846,12847,12847,12847,12848,12848,12849,12847,27999,27999,27998,27998,27999,27999]} 1. e4 {[%emt 0:00:10]} e5 {[%emt 0:00:10]} 2. Nf3 {[%emt 0:00:14]} Nc6 {[%emt 0:00:08]} 3. Bb5 {[%emt 0:00:45]} a6 {[%emt 0:00:08]} 4. Ba4 {[%emt 0:00:03]} Nf6 {[%emt 0:00:09]} 5. O-O {[%emt 0:00:12]} b5 {[%emt 0:00:14]} 6. Bb3 {[%emt 0:00:08]} Bc5 {[%emt 0:00:08]} 7. a4 {[%emt 0:00:54]} Rb8 {[%emt 0:00:18]} 8. c3 {[%emt 0:00:56]} d6 {[%emt 0:00:11]} 9. d4 {[%emt 0:02:27]} Bb6 {[%emt 0:00:30]} 10. a5 {[%emt 0:03:38] C78: Ruy Lopez: Archangelsk and Möller Defences.} Ba7 {[%emt 0:00:33]} (10... Bxa5 $2 11. dxe5 (11. d5 Ne7 $18) 11... dxe5 12. Qxd8+ Kxd8 13. Bd5 (13. Bxf7 Bb6 $16) 13... Nxd5 14. exd5 $18) 11. h3 {[%emt 0:00:29]} Bb7 {[%emt 0:00:59]} 12. Be3 {[%emt 0:00:23] White has an edge.} Nxe4 {[%emt 0:00:47]} 13. Nbd2 {[%emt 0:03:19]} Nxd2 {[%emt 0:07:34]} 14. Qxd2 {[%emt 0:01:22]} O-O {[%emt 0:05:27]} 15. dxe5 {[%emt 0:01:35]} dxe5 {[%emt 0:05:46]} 16. Qxd8 {[%emt 0:00:40]} Rbxd8 {[%emt 0:00:13]} 17. Bxa7 {[%emt 0:00:54]} Nxa7 {[%emt 0:02:26]} 18. Nxe5 {[%emt 0:00:09] [#] And now Rad1 would win.} Rd2 $146 {[%emt 0:08:12]} (18... c5 $11 {and Black has nothing to worry.}) ({Predecessor:} 18... Bd5 19. Bc2 Nc6 20. Nxc6 Bxc6 21. Rad1 Rfe8 22. Rxd8 Rxd8 23. Rd1 Rxd1+ 24. Bxd1 Kf8 {1-0 (52) Carlsen,M (2855)-Firouzja,A (2754) Stavanger 2021}) 19. Rad1 $1 $18 {[%emt 0:11:40]} Rxd1 {[%emt 0:09:12]} 20. Rxd1 {[%emt 0:00:29]} ({Much less strong is} 20. Bxd1 $6 Nc8 $14) 20... Nc6 {[%emt 0:00:42]} 21. Bxf7+ {[%emt 0:21:50]} Rxf7 {[%emt 0:00:29]} 22. Nxf7 {[%emt 0:00:06]} Kxf7 {[%emt 0:00:07]} 23. Rd7+ {[%emt 0:00:04]} Ne7 {[%emt 0:01:03]} 24. Rxc7 {[%emt 0:00:07]} Bc8 {[%emt 0:00:45]} 25. g4 {[%emt 0:04:29]} h5 {[%emt 0:07:19]} 26. f3 {[%emt 0:07:48]} (26. Ra7 $1 $18) 26... hxg4 {[%emt 0:01:50]} (26... h4 $16) 27. fxg4 {[%emt 0:01:27]} ({Weaker is} 27. hxg4 Ke6 28. Kf2 g6 $16) 27... g5 {[%emt 0:02:13]} 28. Kh2 {[%emt 0:01:28]} Kf6 {[%emt 0:07:30]} 29. Kg3 {[%emt 0:01:00]} Be6 {[%emt 0:01:19]} 30. Ra7 {[%emt 0:04:07]} Bc8 {[%emt 0:01:23]} 31. Rc7 {[%emt 0:01:18] Inhibits Nc6.} Be6 {[%emt 0:00:55]} 32. Ra7 {[%emt 0:02:28]} Bc8 {[%emt 0:00:13]} 33. h4 {[%emt 0:00:43]} gxh4+ {[%emt 0:00:35]} 34. Kxh4 {[%emt 0:00:04]} Ng6+ {[%emt 0:01:37]} 35. Kh5 {[%emt 0:01:53] g5+ is the strong threat.} Nf4+ {[%emt 0:00:53] [#]} 36. Kh6 $1 {[%emt 0:00:27]} Bxg4 {[%emt 0:05:35]} 37. Rxa6+ {[%emt 0:00:05]} Ke5 {[%emt 0:00:49]} 38. Ra8 {[%emt 0:04:20]} Nd5 {[%emt 0:03:03]} 39. Kg5 {[%emt 0:04:42]} Bd7 {[%emt 0:04:50]} 40. Rd8 {[%emt 0:04:17]} (40. Rb8 $18) 40... Bc6 $16 {[%emt 0:01:34]} 41. Kg4 {[%emt 0:31:05] Black must now prevent a6.} Ne3+ {[%emt 0:37:55]} (41... Bb7 $16 42. Rb8 Ba6) 42. Kg3 $18 {[%emt 0:01:11]} Nc4 {[%emt 0:04:39] [#]} 43. b4 {[%emt 0:08:25] Hoping for a6.} Nd6 $2 {[%emt 0:00:33]} (43... Bb7 44. Kf2 Ba6) 44. a6 {[%emt 0:03:25] Strongly threatening a7.} Ne8 {[%emt 0:06:01]} 45. a7 {[%emt 0:03:46]} Nc7 {[%emt 0:00:11] Prevents a8Q.} 46. Kf2 {[%emt 0:00:30] aiming for Ke2.} Ke6 {[%emt 0:01:33]} 47. Ke3 {[%emt 0:01:27] Threatens to win with Rb8.} Ke7 {[%emt 0:00:21]} 48. Rh8 {[%emt 0:00:00]} (48. Rb8 $142 Kd7 49. c4 bxc4 50. b5) 48... Kd6 {[%emt 0:00:00]} 49. Kd4 {[%emt 0:00:00]} Ne6+ {[%emt 0:00:00]} 50. Ke3 {[%emt 0:00:00]} (50. Kd3 $142 Nf4+ 51. Kd2) 50... Nc7 {[%emt 0:00:00]} 51. Rd8+ {[%emt 0:00:00]} (51. Rh6+ $142 Ne6 52. Rh5) 51... Ke7 $1 {[%emt 0:00:00]} 52. Rb8 {[%emt 0:00:00]} Kd6 {[%emt 0:00:00]} 53. c4 {[%emt 0:00:00]} bxc4 {[%emt 0:00:00]} 54. b5 {[%emt 0:00:00][%cal Bb4b5,Bb5b6][%mdl 32]} Bh1 {[%emt 0:00:00]} 55. b6 {[%emt 0:00:00]} Nd5+ {[%emt 0:00:00]} 56. Kd4 {[%emt 0:00:00]} Ne7 {[%emt 0:00:00]} 57. Kxc4 {[%emt 0:00:00]} Bd5+ {[%emt 0:00:00]} 58. Kb5 {[%emt 0:00:00]} Nc6 {[%emt 0:00:00]} 59. a8=Q {[%emt 0:00:00]} Nd4+ {[%emt 0:00:00]} 60. Ka6 {[%emt 0:00:00]} Bxa8 {[%emt 0:00:47]} 61. Rxa8 {[%emt 0:00:00] White mates.} Nc6 {[%emt 0:00:22]} 62. b7 {[%emt 0:00:00]} Kc7 {[%emt 0:00:22]} 63. Rc8+ {[%emt 0:00:00] Weighted Error Value: White=0.73/Black=0.43} 1-0

[Event "Frauenbundesliga 2021-22"]
[Site "Germany"]
[Date "2022.05.27"]
[Round "4.3"]
[White "Melamed, Tatjana"]
[Black "Gaal, Zsoka"]
[Result "1/2-1/2"]
[ECO "B15"]
[WhiteElo "2353"]
[BlackElo "2323"]
[Annotator "TA"]
[PlyCount "91"]
[EventDate "2021.11.26"]
[EventType "team-tourn"]
[EventCountry "GER"]
[SourceTitle "playchess.com"]
[Source "ChessBase"]
[SourceQuality "1"]
[WhiteTeam "Bad Koenigshofen"]
[BlackTeam "Hamburger SK"]
[TimeControl "40/5400+30:1800+30"]

{[%evp 14,91,32,27,35,17,45,32,28,33,46,61,65,0,0,0,0,-30,-27,-37,80,11,22,0,0,0,0,0,0,0,0,0,0,0,0,0,0,0,0,-202,-202,-195,-183,-169,0,0,0,0,0,0,0,0,0,0,0,0,0,0,0,0,0,0,27,38,88,0,0,0,0,0,0,0,0,0,0,0,0,0,0,0]} 1. e4 {[%emt 0:00:08] Duda,Jan Krzysztof} c6 {[%emt 0:00:15]} 2. d4 {[%emt 0:00:08]} d5 {[%emt 0:00:06]} 3. Nd2 {[%emt 0:00:05]} dxe4 {[%emt 0:00:08]} 4. Nxe4 {[%emt 0:00:22]} Nf6 {[%emt 0:00:06]} 5. Nxf6+ {[%emt 0:00:40]} exf6 {[%emt 0:00:12]} 6. c3 {[%emt 0:00:47]} Bd6 {[%emt 0:00:14]} 7. Bd3 {[%emt 0:00:07]} O-O {[%emt 0:00:15]} 8. Qc2 {[%emt 0:00:20] Active counter play!} Re8+ {[%emt 0:00:13] B15: Caro-Kann: 3 Nc3: 3...g6 and 3...dxe4 4 Nxe4 Nf6 5 Nxf6+ exf6.} 9. Ne2 {[%emt 0:00:03]} (9. Be3 $5 {[%cal Rd3h7]}) 9... h5 {[%emt 0:00:16]} 10. Be3 {[%emt 0:03:43]} Nd7 {[%emt 0:00:59] White is slightly better.} 11. O-O-O {[%emt 0:00:53]} b5 {[%emt 0:00:23]} 12. d5 {[%emt 0:10:38]} c5 {[%emt 0:01:35][%cal Bc6c5,Bc5c4][%mdl 32] [#]} 13. Ng3 $146 {[%emt 0:11:34]} (13. Bxb5 $14 Rb8 14. c4) ({Predecessor:} 13. Bxb5 Rb8 14. c4 a6 15. Ba4 Re7 16. Ng3 Ne5 17. Ne4 Reb7 18. b3 Rb4 19. Bd2 Rxa4 20. bxa4 {1-0 (63) Duda,J (2757)-Carlsen,M (2863) Stavanger 2020 CBM 199 [Duda,Jan Krzysztof]}) 13... c4 {[%emt 0:09:41]} 14. Bh7+ {[%emt 0:09:59]} Kh8 {[%emt 0:00:39]} 15. Nxh5 {[%emt 0:11:14]} Ne5 {[%emt 0:25:33] aiming for ...g6.} 16. Bf5 {[%emt 0:08:22]} Qa5 {[%emt 0:12:58]} (16... b4 $15 {keeps the upper hand.} 17. Ng3 g6) 17. Bxc8 {[%emt 0:14:57]} (17. Kb1 $16) 17... Raxc8 $11 {[%emt 0:02:45]} 18. Qf5 {[%emt 0:01:00]} (18. Kb1 $5 {[%cal Rc2f5]}) 18... Qxa2 {[%emt 0:12:34]} 19. Nxf6 $1 {[%emt 0:04:34]} gxf6 {[%emt 0:00:21]} (19... Nd3+ 20. Rxd3 gxf6 21. Qxf6+ Kg8 22. Rd4 Rxe3 23. Rg4+ Kf8 24. Qxd6+ Re7 25. Rh4) 20. Qxf6+ {[%emt 0:00:06]} Kg8 {[%emt 0:00:47]} (20... Kh7 $5 21. Rd4 (21. Qxd6 $2 Nd3+ 22. Rxd3 Qa1+ 23. Kc2 cxd3+ 24. Kxd3 Rxe3+ 25. fxe3 Qxh1 $19) 21... Nd3+ 22. Rxd3 Qa1+ 23. Kc2 cxd3+ 24. Kxd3 Rxe3+ 25. fxe3 Qxh1 26. Qxf7+ Kh8 27. Qf6+ Kh7 28. Qf7+ Kh8 29. Qf6+ Kh7 30. Qf7+ $11) 21. Bh6 {[%emt 0:07:36][%csl Gh6][%cal Rf6g7]} (21. Bd4 $2 b4 $1 22. Qg5+ Ng6 $19) 21... Nd3+ {[%emt 0:14:45]} (21... Qa1+ $2 22. Kc2 Qa4+ 23. Kb1 $18) 22. Rxd3 $1 {[%emt 0:00:11][%csl Gh6][%cal Rf6g7]} Qa1+ {[%emt 0:02:33]} 23. Kc2 {[%emt 0:00:55][%csl Gh6][%cal Rf6g7]} Re2+ {[%emt 0:00:28]} (23... cxd3+ $2 24. Kxd3 Bf8 25. Rxa1 $18) 24. Rd2 {[%emt 0:03:57]} Rxd2+ {[%emt 0:00:18]} 25. Bxd2 {[%emt 0:04:07] The board is on fire.} ({Reject} 25. Kxd2 Qxb2+ 26. Kd1 (26. Ke3 $2 Bc5+ 27. Ke4 Qc2+ 28. Kf4 Qxf2+ 29. Kg5 Be3+ 30. Kg4 Qxf6 $19) 26... Qb1+ 27. Bc1 (27. Kd2 $2 Qd3+ 28. Ke1 Re8+ 29. Be3 Be5 $19) 27... Qb3+ 28. Ke2 Qc2+ 29. Kf3 Qd3+ 30. Kg4 Qe4+ 31. Kh3 Qxd5 $17) 25... Qxh1 {[%emt 0:00:46]} 26. Qxd6 {[%emt 0:03:11]} (26. Qf5 $11 Ra8 27. Qg4+ Kh8 28. Qh4+ Kg8 29. Qg4+ Kh8 30. Qh4+ Kg8 31. Qg4+) 26... Qxg2 {[%emt 0:00:20][%mdl 4096] Endgame KQR-KQB} 27. Qd7 {[%emt 0:01:00]} Qe4+ $1 {[%emt 0:03:26]} 28. Kc1 {[%emt 0:00:04] [#]} Re8 {[%emt 0:01:00]} (28... Rc5 $1 $19 {And now ...a5 would win.} 29. f3 Qxd5 30. Qg4+ Kf8) 29. f3 $1 $36 {[%emt 0:01:27][%mdl 2048] White has the initiative.} Qe5 {[%emt 0:01:33]} 30. d6 {[%emt 0:01:38]} Qe6 {[%emt 0:08:38]} 31. Qxb5 {[%emt 0:00:18]} f6 {[%emt 0:00:45]} 32. Qh5 {[%emt 0:00:33]} Qf7 {[%emt 0:00:37]} 33. Qg4+ {[%emt 0:00:10]} Kh8 {[%emt 0:00:19]} 34. Qh4+ {[%emt 0:01:41]} Kg7 {[%emt 0:01:14]} 35. Qg4+ {[%emt 0:00:31]} Kh8 {[%emt 0:00:33]} 36. Qd4 {[%emt 0:00:31]} Rd8 {[%emt 0:00:34]} 37. Be3 {[%emt 0:00:29]} a6 {[%emt 0:00:19]} 38. Qh4+ {[%emt 0:00:18]} Kg7 {[%emt 0:00:30] [#]} (38... Kg8 $14) 39. Qf4 {[%emt 0:00:58]} (39. Bb6 $1 $16 Rd7 40. Qg4+ (40. Qh3 Qe8 $11) 40... Kf8 41. h4) 39... Qd7 {[%emt 0:00:47] The position is equal.} 40. Qxc4 {[%emt 0:00:39]} Qxd6 {[%emt 0:00:22][%csl Gd8][%cal Rd6d1]} 41. Qg4+ {[%emt 0:00:44]} Kf7 {[%emt 0:01:47][%csl Gd8][%cal Rd6d1]} 42. Qh5+ {[%emt 0:00:28]} Ke6 {[%emt 0:02:47][%csl Gd8][%cal Rd6d1]} 43. Qh3+ {[%emt 0:05:31]} ({Don't play} 43. Bd4 Qf4+ 44. Kc2 Qf5+ 45. Qxf5+ Kxf5 $17) 43... Kf7 {[%emt 0:08:19][%csl Gd8][%cal Rd6d1]} 44. Qh7+ {[%emt 0:04:07]} Ke6 {[%emt 0:01:40][%csl Gd8][%cal Rd6d1]} 45. Qh3+ {[%emt 0:02:12]} Kf7 {[%emt 0:00:16][%csl Gd8][%cal Rd6d1]} 46. Qh7+ {[%emt 0:00:15] Weighted Error Value: White=0.21 (precise) /Black=0.13 (very precise)} 1/2-1/2

[Event "Frauenbundesliga 2021-22"]
[Site "Germany"]
[Date "2022.05.27"]
[Round "4.4"]
[White "Roebers, Eline"]
[Black "Savina, Anastasia"]
[Result "0-1"]
[ECO "B32"]
[WhiteElo "2369"]
[BlackElo "2348"]
[Annotator "TA"]
[PlyCount "96"]
[EventDate "2021.11.26"]
[EventType "team-tourn"]
[EventCountry "GER"]
[SourceTitle "playchess.com"]
[Source "ChessBase"]
[SourceQuality "1"]
[WhiteTeam "Hamburger SK"]
[BlackTeam "Bad Koenigshofen"]
[TimeControl "40/5400+30:1800+30"]

{[%evp 17,96,10,16,0,0,0,0,0,0,0,0,6,15,0,0,0,0,0,0,0,0,0,0,-12,-13,-14,0,-2,-6,-18,-18,-27,-14,-20,-23,-45,0,0,0,-77,0,0,0,0,0,-289,-66,-289,-289,-289,-289,-289,-289,-289,-289,-289,-282,-282,-275,-275,-260,-260,-260,-253,-245,-245,-238,-238,-238,-237,-237,-218,-2113,-29980,-29981,-29981,-29980,-29980,-29981,-29987,-29988]} 1. e4 {[%emt 0:00:03]} c5 {[%emt 0:00:16]} 2. Nf3 {[%emt 0:00:03][%cal Bg1f3,Bf3d4,Bd4b5][%mdl 32]} Nc6 {[%emt 0:00:05]} 3. d4 {[%emt 0:00:03]} cxd4 {[%emt 0:00:05]} 4. Nxd4 {[%emt 0:00:03]} e5 {[%emt 0:00:52]} 5. Nb5 {[%emt 0:00:04]} d6 {[%emt 0:00:04]} 6. N1c3 {[%emt 0:00:03][%cal Bb1c3,Bc3d5,Bd5e7,Be7c6,Bc6b4][%mdl 32]} a6 {[%emt 0:00:11]} 7. Na3 {[%emt 0:00:03]} b5 {[%emt 0:00:04]} 8. Nd5 {[%emt 0:00:03]} Nge7 {[%emt 0:01:52]} 9. Bg5 {[%emt 0:05:03]} h6 {[%emt 0:04:48] 9...f6 might become the main line.} 10. Bxb5 {[%emt 0:00:47] B32: Sicilian: Löwenthal and Kalashnikov Variations.} hxg5 {[%emt 0:01:10]} 11. Nxe7 {[%emt 0:00:51][%mdl 64] Pin} axb5 {[%emt 0:00:17]} 12. Nxc6 {[%emt 0:00:10] The position is equal.} Qd7 {[%emt 0:00:13] aiming for ...Rh4.} 13. Nb4 $1 {[%emt 0:02:27] Black must now prevent Nd5. Pair of Knights!} ({Wrong is} 13. Qd5 $2 Bb7 14. Nxe5 dxe5 15. Qxe5+ Be7 $19) 13... Ra4 {[%emt 0:00:46]} 14. c3 {[%emt 0:16:20]} d5 $1 {[%emt 0:01:28]} 15. Qxd5 {[%emt 0:11:23]} (15. Qd2 {seems wilder.} Bxb4 16. cxb4 dxe4 17. Qxg5 O-O 18. Qxe5 Rxb4 19. Rd1) 15... Qxd5 {[%emt 0:01:06]} 16. exd5 {[%emt 0:02:54]} Bxb4 {[%emt 0:00:12]} 17. cxb4 {[%emt 0:00:04]} Rxb4 {[%emt 0:00:06]} 18. O-O-O {[%emt 0:09:06]} Kd7 {[%emt 0:02:31]} 19. h3 {[%emt 0:10:34]} Kd6 {[%emt 0:00:50] [#]} 20. f3 $146 {[%emt 0:02:07]} ({Predecessor:} 20. b3 Bd7 21. Nc2 Re4 22. Ne3 f5 23. Rhe1 g6 24. Kb2 Reh4 25. f3 Re8 26. Nc2 {½-½ (51) Neiksans,A (2478)-Nun,J (2396) Pardubice 2009}) 20... Bf5 {[%emt 0:05:30][%mdl 1024] Black has compensation.} 21. b3 {[%emt 0:00:49]} Rc8+ {[%emt 0:00:38]} 22. Kb2 {[%emt 0:00:11]} Rc5 {[%emt 0:00:25]} 23. Rd2 {[%emt 0:08:11]} Rd4 {[%emt 0:09:22]} 24. Rhd1 {[%emt 0:00:52]} Rcxd5 {[%emt 0:02:45]} 25. Rxd4 {[%emt 0:01:41]} exd4 {[%emt 0:00:09]} 26. Nc2 {[%emt 0:01:48]} Bxc2 {[%emt 0:19:59]} 27. Kxc2 $15 {[%emt 0:00:12][%mdl 4096] Endgame KR-KR} b4 {[%emt 0:04:40]} 28. Kb2 {[%emt 0:11:31]} (28. Kd3 $11 {remains equal.}) 28... d3 {[%emt 0:08:42]} ({Better is} 28... Ke5 $1 $17 {And now ...d3 would win.} 29. Kc2 Ra5) 29. Kc1 $1 $11 {[%emt 0:05:11]} f5 {[%emt 0:22:46]} 30. Kd2 {[%emt 0:02:45]} Ke5 {[%emt 0:01:33]} 31. g3 {[%emt 0:06:03][%mdl 8192]} (31. Rc1 $11) 31... Ra5 $2 {[%emt 0:03:08]} (31... Rc5 $1 $19 {Hoping for ...Kd4.} 32. Kxd3 Rd5+ 33. Ke2 Rxd1 34. Kxd1 Kd4) 32. Ke3 {[%emt 0:01:36] White does not recover from this.} ({White has to play} 32. Rc1 $1 $15) 32... f4+ $1 $19 {[%emt 0:02:55]} 33. gxf4+ {[%emt 0:00:04]} gxf4+ {[%emt 0:00:03]} 34. Kxd3 {[%emt 0:00:05]} Rd5+ $1 {[%emt 0:05:49]} 35. Ke2 {[%emt 0:00:10] [#]} Rxd1 {[%emt 0:00:07]} 36. Kxd1 {[%emt 0:00:01] [#] KP-KP} Kd4 $1 {[%emt 0:00:08]} 37. Kc2 {[%emt 0:02:51]} g6 {[%emt 0:02:12]} ({Inferior is} 37... Ke3 38. a4 bxa3 39. b4 $19) 38. h4 {[%emt 0:01:04]} Ke3 {[%emt 0:00:04]} 39. a4 {[%emt 0:00:02]} bxa3 {[%emt 0:00:50]} 40. b4 {[%emt 0:00:05]} Kxf3 {[%emt 0:00:33] K3P-KPP} 41. b5 {[%emt 0:30:05] White wants to mate with b6.} Kg2 {[%emt 0:08:50]} 42. b6 {[%emt 0:00:00]} f3 {[%emt 0:00:14]} 43. b7 {[%emt 0:00:00]} f2 {[%emt 0:00:10]} 44. b8=Q {[%emt 0:00:00] White threatens Qb7+ and mate.} f1=Q {[%emt 0:00:06] ( -> ...a2)} 45. Qe8 {[%emt 0:00:00]} Qc4+ {[%emt 0:05:04] Black mates.} 46. Kd2 {[%emt 0:00:00]} Qd4+ {[%emt 0:03:23]} 47. Kc2 {[%emt 0:00:00]} a2 {[%emt 0:06:12]} 48. Qxg6+ {[%emt 0:00:00]} Kh2 {[%emt 0:00:47] Weighted Error Value: White=0.51/Black=0.15 (very precise)} 0-1

[Event "Frauenbundesliga 2021-22"]
[Site "Germany"]
[Date "2022.05.27"]
[Round "4.5"]
[White "Obolentseva, Alexandra"]
[Black "Papp, Sarah"]
[Result "1-0"]
[ECO "E11"]
[WhiteElo "2305"]
[BlackElo "2305"]
[Annotator "TA"]
[PlyCount "103"]
[EventDate "2021.11.26"]
[EventType "team-tourn"]
[EventCountry "GER"]
[SourceTitle "playchess.com"]
[Source "ChessBase"]
[SourceQuality "1"]
[WhiteTeam "Bad Koenigshofen"]
[BlackTeam "Hamburger SK"]
[TimeControl "40/5400+30:1800+30"]

{[%evp 17,103,13,28,10,10,17,10,5,14,11,8,0,47,47,47,64,61,0,4,-31,-21,-27,45,-69,0,33,0,0,12,-51,-51,-46,-47,-169,-165,-170,0,0,0,0,0,0,0,0,0,0,0,0,0,0,0,0,0,0,0,0,0,0,0,0,0,0,0,0,0,0,59,50,50,50,29971,29972,29972,29973,29973,29974,29975,29975,29973,29974,29974,29974,29978,29979,29981,29981,29981,29982]} 1. d4 {[%emt 0:00:09]} Nf6 {[%emt 0:00:05]} 2. c4 {[%emt 0:00:24]} e6 {[%emt 0:00:04]} 3. g3 {[%emt 0:01:17]} d5 {[%emt 0:00:11]} 4. Bg2 {[%emt 0:00:14]} Bb4+ {[%emt 0:00:06]} 5. Bd2 {[%emt 0:00:19]} Be7 {[%emt 0:00:07]} 6. Nf3 {[%emt 0:01:40]} O-O {[%emt 0:00:24]} 7. O-O {[%emt 0:03:07]} Nbd7 {[%emt 0:00:12]} 8. Qc2 {[%emt 0:02:00]} c6 {[%emt 0:00:06]} 9. Rd1 {[%emt 0:02:25]} Ne4 {[%emt 0:00:26]} 10. Be1 {[%emt 0:02:31] E11: Bogo-Indian.} a5 {[%emt 0:00:09]} 11. Nfd2 {[%emt 0:01:54]} f5 {[%emt 0:01:26]} 12. Nxe4 {[%emt 0:10:22] The position is equal.} fxe4 {[%emt 0:02:05] [#]} 13. f3 $146 {[%emt 0:00:12]} ({Predecessor:} 13. Nc3 Bf6 14. f3 exf3 15. Bxf3 Nb6 16. c5 Nc4 17. Bf2 Bg5 18. Na4 e5 19. dxe5 Nxe5 {0-1 (71) Socko,M (2490)-Jussupow,E (2162) Germany 2012}) 13... Qe8 {[%emt 0:03:15]} 14. fxe4 {[%emt 0:01:23]} Qg6 {[%emt 0:00:15]} (14... dxe4 $11 {deserves consideration.} 15. Bc3 (15. Qxe4 e5 $11) 15... e5) 15. Nd2 $14 {[%emt 0:08:58]} Nf6 {[%emt 0:16:46]} 16. Qd3 {[%emt 0:00:43]} Qh6 {[%emt 0:11:47]} 17. e5 {[%emt 0:22:05]} (17. h3 $14) 17... Ng4 $11 {[%emt 0:06:01][%csl Gg4][%cal Rh6h2]} 18. h3 {[%emt 0:01:22]} Ne3 {[%emt 0:13:28]} 19. Rdc1 {[%emt 0:00:52]} Bd7 {[%emt 0:05:21]} ({Black should play} 19... Nxg2 $11 20. Kxg2 b6) 20. Bf2 {[%emt 0:08:51]} (20. c5 $14) 20... Rxf2 {[%emt 0:04:03]} 21. Kxf2 $14 {[%emt 0:00:39]} Rf8+ {[%emt 0:05:16]} 22. Nf3 {[%emt 0:02:32]} Nxc4 {[%emt 0:03:24]} 23. b3 {[%emt 0:00:43]} ({White should try} 23. Rxc4 $11 dxc4 24. Qxc4) 23... Nd2 $1 $15 {[%emt 0:01:17] ...Ne4+ is the strong threat.} 24. Kg1 {[%emt 0:05:47]} Ne4 {[%emt 0:00:22]} 25. Nh2 {[%emt 0:00:58] [#]} (25. Kh2 $15) 25... Nf2 $1 $19 {[%emt 0:04:00]} 26. Ng4 {[%emt 0:00:06]} Nxg4 {[%emt 0:01:25]} ({Better is} 26... Qxc1+ $1 $19 27. Rxc1 Nxd3 28. exd3 Be8) 27. hxg4 $11 {[%emt 0:00:05]} Bg5 {[%emt 0:02:07]} 28. Rc3 {[%emt 0:00:05]} Bd2 {[%emt 0:02:55]} 29. Rf1 {[%emt 0:00:20]} Bxc3 {[%emt 0:04:13]} 30. Rxf8+ {[%emt 0:00:15]} Kxf8 {[%emt 0:00:06]} 31. Qxc3 {[%emt 0:00:04][%mdl 4096] Endgame KQB-KQB} b6 {[%emt 0:02:56]} 32. Kf2 {[%emt 0:03:25]} Qg6 {[%emt 0:02:55]} 33. Bf3 {[%emt 0:01:49]} Qb1 {[%emt 0:01:42]} 34. Qd2 {[%emt 0:01:50]} Be8 {[%emt 0:01:17]} 35. Qf4+ {[%emt 0:00:20]} Bf7 {[%emt 0:01:24]} 36. Qg5 {[%emt 0:00:06]} Qxa2 {[%emt 0:02:27]} 37. Qd8+ {[%emt 0:00:09]} Be8 {[%emt 0:00:04]} 38. Qxb6 {[%emt 0:00:58]} Qa3 {[%emt 0:01:00]} 39. Qc7 {[%emt 0:02:57]} Qb4 {[%emt 0:00:56]} 40. Qa7 {[%emt 0:00:59]} h6 {[%emt 0:02:54]} 41. Kg2 {[%emt 0:32:57]} Kg8 {[%emt 0:06:36]} (41... Qxb3 $11 42. Qc5+ Kg8) 42. Qa8 {[%emt 0:00:00]} Kf8 {[%emt 0:00:11]} 43. g5 $1 {[%emt 0:00:00] aiming for Bh5.} hxg5 $2 {[%emt 0:04:57][%mdl 8192] [#]} (43... Qxd4 $2 44. gxh6 Qxe5 45. h7 $18) (43... Ke7 $14) 44. Bh5 $1 {[%emt 0:00:00][%csl Gh5][%cal Ra8e8] White mates.} Qe7 {[%emt 0:00:08]} 45. Kh3 {[%emt 0:00:00]} Qd7 {[%emt 0:02:58]} 46. Kg4 {[%emt 0:00:00]} Ke7 {[%emt 0:07:57]} 47. Bxe8 {[%emt 0:00:00]} Qxe8 {[%emt 0:00:01]} 48. Qxe8+ {[%emt 0:00:00]} Kxe8 {[%emt 0:00:04]} 49. Kxg5 {[%emt 0:00:00]} Kf7 {[%emt 0:00:07]} 50. g4 {[%emt 0:00:00][%cal Bg3g4,Bg4g5][%mdl 32]} Kf8 {[%emt 0:00:45]} 51. Kg6 {[%emt 0:00:00]} Kg8 {[%emt 0:00:05]} 52. g5 {[%emt 0:00:00] Quite a comeback for White.  Weighted Error Value: White=0.17 (very precise) /Black=0.27 (precise)} 1-0